bitfinex/quotes_SOLUSD_20240708
["timestamp","ask_amount","ask_price","bid_price","bid_amount"]
[1720459300145,18.1994,137.37,137.27,100.0]
[1720459300369,7.60929552,137.39,137.24,200.0]
[1720459300582,7.2828,137.31,137.25,0.17]
[1720459300736,20.0,137.3,137.25,0.17]
[1720459300945,27.2835,137.3,137.25,0.17]
[1720459301144,20.0,137.3,137.27,0.17]
[1720459301359,9.10167985,137.38,137.3,0.17]
[1720459301672,7.60929552,137.39,137.33,0.17]
[1720459301886,9.10167985,137.42,137.33,0.17]
[1720459302083,7.2791,137.38,137.33,0.17]
[1720459302369,18.1918,137.43,137.32,0.17]
[1720459302670,7.2803,137.36,137.32,0.17]
[1720459302868,7.2797,137.37,137.32,0.17]
[1720459303077,36.3841,137.43,137.29,100.0]
[1720459303283,7.2807,137.35,137.3,0.17]
[1720459303492,20.0,137.34,137.3,0.17]
[1720459303988,36.392,137.4,137.26,124.5253]
[1720459303989,18.198,137.38,137.27,100.0]
[1720459304194,7.2829,137.31,137.24,107.2863]
[1720459304411,20.0,137.3,137.23,100.0]
[1720459304693,20.0,137.3,137.23,221.95]
[1720459304867,20.0,137.3,137.23,200.0]
[1720459305071,7.2838,137.29,137.23,200.0]
[1720459305420,27.2843,137.28,137.21,121.95]
[1720459305562,7.285,137.27,137.21,100.0]
[1720459305763,20.0,137.26,137.21,100.0]
[1720459305963,7.2849,137.27,137.21,100.0]
[1720459306164,20.0,137.28,137.26,107.2854]
[1720459306389,20.0,137.38,137.28,100.0]
[1720459306669,18.1929,137.42,137.32,100.0]
[1720459306866,9.10167985,137.43,137.35,0.17]
[1720459307191,9.10167985,137.43,137.33,100.17]
[1720459307192,18.1916,137.43,137.33,100.17]
[1720459307368,7.2785,137.39,137.33,100.17]
[1720459307573,7.2776,137.41,137.36,0.17]
[1720459308092,55.20789994,137.44,137.34,0.17]
[1720459308297,7.2785,137.4,137.34,0.17]
[1720459308474,18.193,137.42,137.34,0.17]
[1720459308677,18.193,137.42,137.31,107.2827]
[1720459308990,18.1955,137.4,137.3,100.0]
[1720459309402,7.2795,137.38,137.32,100.0]
[1720459309578,18.1915,137.43,137.32,121.95]
[1720459309781,18.1915,137.43,137.34,100.0]
[1720459309989,7.2778,137.41,137.34,107.281]
[1720459310299,37.01769994,137.44,137.35,0.17]
[1720459310496,7.2765,137.43,137.37,0.17]
[1720459310737,7.2761,137.44,137.39,0.17]
[1720459311103,7.2754,137.45,137.39,0.17]
[1720459311397,7.2751,137.46,137.4,100.0]
[1720459311595,34.8901849,137.48,137.37,18.1984]
[1720459311927,7.2763,137.44,137.38,100.17]
[1720459312129,7.2754,137.45,137.38,100.17]
[1720459312425,34.8901849,137.48,137.38,100.17]
[1720459312426,25.78850505,137.48,137.38,100.17]
[1720459312633,25.78850505,137.48,137.38,129.3987]
[1720459312634,7.2757,137.45,137.38,129.3987]
[1720459312837,7.276,137.44,137.38,100.17]
[1720459313122,7.2769,137.42,137.37,0.17]
[1720459313325,7.2772,137.42,137.36,100.0]
[1720459313631,7.2772,137.42,137.36,121.95]
[1720459313923,7.2776,137.41,137.36,100.0]
[1720459314133,18.1874,137.46,137.38,100.0]
[1720459314321,7.60350505,137.48,137.4,100.0]
[1720459314637,6.0583,137.5,137.42,100.0]
[1720459314832,7.2741,137.48,137.42,100.0]
[1720459315031,6.0583,137.5,137.41,0.17]
[1720459315203,7.2748,137.47,137.41,0.17]
[1720459315398,7.2755,137.45,137.38,107.279]
[1720459315618,7.2755,137.45,137.39,0.17]
[1720459315833,7.2778,137.41,137.36,100.0]
[1720459316041,38.1902,137.44,137.34,100.0]
[1720459316245,18.1931,137.42,137.32,100.0]
[1720459316549,20.0,137.41,137.32,100.0]
[1720459316712,7.2802,137.36,137.32,100.0]
[1720459316915,7.2802,137.36,137.3,118.2075]
[1720459317137,7.2796,137.37,137.3,125.4907]
[1720459317449,20.0,137.36,137.32,100.0]
[1720459317812,20.0,137.36,137.32,121.95]
[1720459318140,20.0,137.37,137.28,100.0]
[1720459318322,7.2802,137.36,137.3,100.0]
[1720459318524,20.0,137.35,137.3,100.0]
[1720459318718,27.2807,137.35,137.3,100.0]
[1720459319036,20.0,137.35,137.32,100.0]
[1720459319248,7.2792,137.38,137.32,100.0]
[1720459319426,20.0,137.37,137.32,107.2822]
[1720459319624,20.0,137.37,137.32,100.0]
[1720459319830,7.2807,137.35,137.31,0.17]
[1720459320033,7.2768,137.43,137.37,100.0]
[1720459320347,7.2757,137.45,137.37,107.2796]
[1720459320646,35.4683,137.5,137.35,100.0]
[1720459320647,7.2782,137.4,137.35,100.0]
[1720459320818,7.2776,137.41,137.35,100.0]
[1720459321011,36.371,137.48,137.33,18.2035]
[1720459321012,36.371,137.48,137.33,100.0]
[1720459321210,18.1945,137.41,137.3,18.2075]
[1720459321411,18.1945,137.41,137.32,100.0]
[1720459321612,20.0,137.4,137.32,100.0]
[1720459321842,20.0,137.4,137.3,121.95]
[1720459322052,7.2805,137.36,137.3,100.0]
[1720459322208,20.0,137.35,137.3,107.2829]
[1720459322534,20.0,137.35,137.31,7.2827]
[1720459322736,15.0651,137.45,137.36,100.0]
[1720459322928,7.86804503,137.49,137.38,100.0]
[1720459323114,18.1855,137.48,137.38,100.0]
[1720459323456,16.96972488,137.48,137.35,0.17]
[1720459323755,16.96972488,137.48,137.36,100.0]
[1720459323913,18.1889,137.45,137.35,0.17]
[1720459324240,7.2791,137.38,137.32,100.0]
[1720459324417,20.0,137.37,137.31,7.2824]
[1720459324612,20.0,137.37,137.32,100.0]
[1720459325050,20.0,137.37,137.33,7.2815]
[1720459325339,7.2773,137.42,137.36,0.17]
[1720459325636,18.3605,137.44,137.36,0.17]
[1720459325845,7.2775,137.41,137.36,100.0]
[1720459326051,7.61497077,137.46,137.37,0.17]
[1720459326251,7.276,137.44,137.38,100.0]
[1720459326762,7.2775,137.41,137.36,100.0]
[1720459327046,7.2778,137.41,137.36,100.0]
[1720459327423,18.1887,137.45,137.36,100.0]
[1720459327616,18.1887,137.45,137.37,0.17]
[1720459327817,20.0,137.44,137.37,0.17]
[1720459328435,18.1917,137.43,137.34,100.0]
[1720459328642,7.2789,137.39,137.34,100.0]
[1720459328818,20.0,137.38,137.34,100.0]
[1720459329145,20.0,137.38,137.34,121.95]
[1720459329652,20.0,137.39,137.34,121.95]
[1720459329947,20.0,137.39,137.35,7.4506]
[1720459330144,27.2775,137.41,137.35,0.17]
[1720459330519,20.0,137.41,137.32,100.0]
[1720459330734,7.2816,137.34,137.29,100.0]
[1720459330913,0.17,137.4,137.29,107.2834]
[1720459330914,20.0,137.33,137.29,107.2834]
[1720459331116,20.0,137.33,137.29,100.0]
[1720459331539,20.0,137.33,137.29,129.2338]
[1720459331740,18.1982,137.38,137.28,100.0]
[1720459331741,20.0,137.34,137.28,100.0]
[1720459331934,20.0,137.37,137.28,100.0]
[1720459332243,7.2815,137.34,137.28,100.0]
[1720459332553,7.2808,137.35,137.3,100.0]
[1720459332854,20.0,137.34,137.31,21.95]
[1720459333038,20.0,137.34,137.32,100.0]
[1720459333345,27.2802,137.36,137.32,100.0]
[1720459334059,7.2813,137.34,137.28,100.0]
[1720459334221,20.0,137.33,137.29,0.17]
[1720459334560,20.0,137.33,137.28,100.0]
[1720459334731,27.2818,137.33,137.27,140.1614]
[1720459334922,7.2833,137.3,137.26,100.0]
[1720459335122,20.0,137.29,137.26,100.0]
[1720459335428,7.2828,137.31,137.26,100.0]
[1720459335628,27.2833,137.3,137.26,100.0]
[1720459336118,20.0,137.3,137.26,100.0]
[1720459336758,27.2833,137.3,137.26,100.0]
[1720459337324,27.2833,137.3,137.24,121.95]
[1720459337521,7.2839,137.29,137.23,18.217]
[1720459337718,18.2044,137.33,137.22,144.4037]
[1720459337719,27.2845,137.28,137.22,100.0]
[1720459337942,7.2849,137.27,137.2,131.5592]
[1720459338250,20.0,137.26,137.2,25.5093]
[1720459338471,7.287,137.23,137.17,18.2245]
[1720459338646,7.287,137.23,137.16,113.332]
[1720459338647,27.2878,137.22,137.16,106.0416]
[1720459338823,20.0,137.22,137.16,106.0416]
[1720459339120,20.0,137.22,137.16,100.0]
[1720459339330,27.2877,137.22,137.16,100.0]
[1720459339530,7.2877,137.22,137.16,100.0]
[1720459339739,20.0,137.21,137.16,100.0]
[1720459340057,27.2881,137.21,137.16,100.0]
[1720459340229,20.0,137.21,137.16,100.0]
[1720459340771,27.2882,137.21,137.16,100.0]
[1720459341068,27.2882,137.21,137.17,0.17]
[1720459341848,27.2882,137.21,137.16,100.0]
[1720459342048,7.2887,137.2,137.14,118.2289]
[1720459342251,27.2892,137.19,137.14,100.0]
[1720459342873,20.0,137.19,137.14,107.2917]
[1720459343039,20.0,137.19,137.16,100.0]
[1720459343247,7.2879,137.22,137.16,100.0]
[1720459343566,20.0,137.21,137.15,0.17]
[1720459343742,20.0,137.23,137.15,0.17]
[1720459343948,7.289,137.2,137.14,100.0]
[1720459344134,20.0,137.19,137.14,100.0]
[1720459344539,27.2893,137.19,137.13,18.2299]
[1720459344768,27.2893,137.19,137.12,129.2427]
[1720459344974,20.0,137.19,137.15,100.0]
[1720459345272,27.2892,137.19,137.13,100.0]
[1720459345560,20.0,137.19,137.11,107.2932]
[1720459345775,7.2902,137.17,137.11,107.2933]
[1720459345955,20.0,137.16,137.11,107.2933]
[1720459346461,20.0,137.16,137.09,118.2351]
[1720459346649,7.2913,137.15,137.09,125.5292]
[1720459346855,7.2919,137.14,137.08,7.2948]
[1720459347070,20.0,137.13,137.08,7.2948]
[1720459347469,27.2923,137.13,137.07,229.2454]
[1720459347677,20.0,137.13,137.07,229.2454]
[1720459347860,7.2921,137.14,137.07,107.2954]
[1720459348046,20.0,137.13,137.1,100.0]
[1720459348695,20.0,137.14,137.08,125.532]
[1720459348898,20.0,137.14,137.11,100.0]
[1720459349107,20.0,137.17,137.11,100.0]
[1720459349276,20.17,137.18,137.11,100.0]
[1720459349608,7.2905,137.17,137.12,0.17]
[1720459349905,20.0,137.16,137.12,0.17]
[1720459350104,5.75902985,137.19,137.12,0.17]
[1720459350105,7.2902,137.17,137.12,0.17]
[1720459350475,7.2897,137.18,137.12,7.4628]
[1720459350676,31.67606949,137.22,137.14,107.2915]
[1720459351003,24.05704503,137.22,137.12,140.3516]
[1720459351171,18.3903,137.21,137.12,100.17]
[1720459351377,7.2907,137.16,137.12,0.17]
[1720459351590,7.2904,137.17,137.11,0.17]
[1720459351884,7.2898,137.18,137.13,0.17]
[1720459352080,20.0,137.17,137.13,0.17]
[1720459352284,7.2893,137.19,137.13,0.17]
[1720459352597,20.0,137.18,137.15,0.17]
[1720459352800,20.0,137.18,137.07,36.4758]
[1720459352801,20.0,137.2,137.12,100.0]
[1720459353106,7.2899,137.18,137.12,100.0]
[1720459353305,20.0,137.17,137.13,0.17]
[1720459354481,27.2902,137.17,137.13,0.17]
[1720459355312,20.0,137.17,137.13,0.17]
[1720459355607,7.2914,137.15,137.09,121.95]
[1720459355811,27.2919,137.14,137.07,118.2377]
[1720459356109,7.2924,137.13,137.07,125.5329]
[1720459356321,7.2924,137.13,137.07,118.2377]
[1720459356617,7.2919,137.14,137.07,125.5331]
[1720459356781,20.0,137.13,137.08,7.2949]
[1720459356981,20.0,137.13,137.09,147.48]
[1720459357391,27.2914,137.15,137.09,100.0]
[1720459357611,7.2918,137.14,137.09,100.0]
[1720459357805,20.0,137.13,137.09,100.0]
[1720459357996,20.0,137.13,137.08,18.4073]
[1720459358810,20.0,137.13,137.1,18.2348]
[1720459359025,27.2908,137.16,137.11,0.17]
[1720459359184,7.2913,137.15,137.09,100.0]
[1720459359386,20.0,137.14,137.09,100.0]
[1720459359911,7.2923,137.13,137.07,118.2377]
[1720459360214,20.0,137.12,137.08,0.17]
[1720459360912,20.0,137.12,137.07,18.2377]
[1720459361321,7.2934,137.11,137.05,100.0]
[1720459361496,20.0,137.1,137.04,25.5384]
[1720459362094,27.294,137.1,137.04,18.2417]
[1720459363115,27.294,137.1,137.04,25.5387]
[1720459363279,7.2948,137.09,137.03,100.0]
[1720459363484,20.0,137.08,137.03,100.0]
[1720459363685,27.295,137.08,137.03,0.17]
[1720459363914,27.295,137.08,137.01,25.5442]
[1720459364215,7.2967,137.05,136.98,25.5504]
[1720459364394,24.6688,137.07,136.97,100.0]
[1720459364715,7.2978,137.03,136.96,7.3013]
[1720459364927,20.0,137.02,136.96,7.3013]
[1720459365128,27.2982,137.02,136.95,7.3017]
[1720459365408,27.2982,137.02,136.94,118.2552]
[1720459365409,20.0,137.02,136.94,100.0]
[1720459365583,20.0,137.03,136.97,7.3008]
[1720459365786,7.2982,137.02,136.95,25.5561]
[1720459366099,20.0,137.01,136.95,25.5561]
[1720459367198,20.0,137.01,136.96,0.17]
[1720459367397,7.2992,137.0,136.93,100.0]
[1720459367607,20.0,136.99,136.93,107.3026]
[1720459368285,27.2999,136.99,136.93,100.0]
[1720459368516,7.3003,136.98,136.92,18.2577]
[1720459368725,20.0,136.97,136.93,100.0]
[1720459369193,20.0,136.98,136.93,100.0]
[1720459369700,20.0,136.98,136.95,100.0]
[1720459370015,5.97357327,137.04,136.95,100.0]
[1720459370232,15.8998,137.05,136.96,100.0]
[1720459370400,34.1422,137.05,136.95,0.17]
[1720459370603,25.00488847,137.05,136.96,100.17]
[1720459370823,7.2982,137.02,136.96,100.17]
[1720459371206,7.2993,137.0,136.94,100.0]
[1720459371526,20.0,136.99,136.96,7.3013]
[1720459371721,20.0,137.02,136.96,100.0]
[1720459371910,20.0,137.02,136.95,0.17]
[1720459371911,7.2982,137.02,136.95,29.4217]
[1720459372118,20.0,137.04,136.97,0.17]
[1720459372119,20.0,137.01,136.97,0.17]
[1720459372341,20.0,137.01,136.96,100.0]
[1720459372506,27.2989,137.01,136.95,0.17]
[1720459372934,20.0,137.01,136.92,118.2577]
[1720459373231,20.0,137.03,136.93,0.17]
[1720459373537,0.17,137.02,136.93,0.17]
[1720459374033,7.3005,136.98,136.92,118.2577]
[1720459374216,18.5861,137.02,136.89,118.2621]
[1720459374217,20.0,136.97,136.89,118.2621]
[1720459374810,20.17,136.98,136.89,118.2621]
[1720459375123,7.3013,136.97,136.91,100.0]
[1720459375322,20.0,136.96,136.91,100.0]
[1720459375513,20.0,136.96,136.89,140.2121]
[1720459375837,20.0,136.96,136.89,100.0]
[1720459376048,7.3015,136.96,136.89,107.3046]
[1720459376347,20.0,136.95,136.9,0.17]
[1720459376543,6.0187,136.99,136.93,7.4725]
[1720459376854,20.0,136.98,136.9,221.95]
[1720459377016,20.0,136.98,136.93,0.17]
[1720459377215,27.3005,136.98,136.93,0.17]
[1720459377817,20.0,136.98,136.93,0.17]
[1720459378143,20.0,136.98,136.92,107.3034]
[1720459378144,6.0187,137.03,136.95,0.17]
[1720459378447,6.0187,137.03,136.97,25.7224]
[1720459378618,11.97078409,137.03,136.96,100.0]
[1720459378818,7.2986,137.02,136.96,107.3013]
[1720459379044,11.97078409,137.03,136.98,100.0]
[1720459379416,11.97078409,137.03,136.96,100.0]
[1720459379722,7.2985,137.02,136.96,100.0]
[1720459380221,7.3004,136.98,136.92,100.0]
[1720459380427,11.97078409,137.03,136.92,100.0]
[1720459380615,7.3018,136.96,136.9,140.2107]
[1720459380820,20.0,136.95,136.9,147.5151]
[1720459381348,20.0,136.95,136.9,140.2107]
[1720459381552,20.0,136.95,136.9,147.5152]
[1720459381849,20.0,136.95,136.93,100.0]
[1720459382020,20.0,137.0,136.92,0.17]
[1720459382211,7.3011,136.97,136.92,0.17]
[1720459382418,20.0,136.96,136.92,0.17]
[1720459382744,27.3014,136.96,136.92,0.17]
[1720459383231,27.3014,136.96,136.91,100.0]
[1720459383555,7.3036,136.92,136.85,207.3071]
[1720459383718,27.3044,136.91,136.85,200.0]
[1720459383926,7.3047,136.9,136.85,100.0]
[1720459384250,20.0,136.89,136.85,200.0]
[1720459384735,20.0,136.9,136.85,207.3072]
[1720459384925,20.0,136.91,136.85,207.3072]
[1720459385116,16.3371,136.97,136.89,221.95]
[1720459385320,7.3006,136.98,136.91,107.3037]
[1720459385555,7.3008,136.97,136.91,100.0]
[1720459385740,7.3039,136.92,136.89,100.0]
[1720459385972,6.2707,136.99,136.89,100.0]
[1720459386161,7.303,136.93,136.87,121.95]
[1720459386366,7.3026,136.94,136.89,100.0]
[1720459386563,20.0,136.93,136.9,0.17]
[1720459386770,21.31669549,136.99,136.92,0.17]
[1720459387075,5.94090702,136.99,136.95,100.0]
[1720459387376,5.96326116,137.01,136.95,0.17]
[1720459387582,7.3009,136.97,136.94,0.17]
[1720459387758,7.3009,136.97,136.93,100.0]
[1720459388082,18.2482,137.0,136.91,200.0]
[1720459388385,18.2482,137.0,136.88,18.263]
[1720459388386,7.3015,136.96,136.89,207.3047]
[1720459388555,20.0,136.95,136.89,229.2547]
[1720459388975,20.0,136.95,136.9,7.4745]
[1720459389683,20.0,136.95,136.91,100.0]
[1720459389913,7.2998,136.99,136.94,0.17]
[1720459390068,6.3573,137.03,136.97,100.0]
[1720459390405,6.4428,137.07,137.02,0.17]
[1720459390558,7.2948,137.09,137.02,7.4681]
[1720459390882,15.54788847,137.11,137.04,0.17]
[1720459391062,15.54788847,137.11,137.07,0.17]
[1720459391266,15.54788847,137.11,137.04,100.0]
[1720459391267,9.10508847,137.11,137.04,100.0]
[1720459391476,7.2959,137.07,137.03,100.0]
[1720459391655,18.2357,137.1,137.02,0.17]
[1720459391854,7.2951,137.08,137.02,0.17]
[1720459392054,18.2317,137.13,137.04,100.0]
[1720459392265,9.10508847,137.13,137.06,100.0]
[1720459392496,7.2936,137.11,137.04,125.5393]
[1720459392657,7.2936,137.11,137.06,0.17]
[1720459392857,7.2945,137.09,137.04,100.0]
[1720459393080,7.2945,137.09,137.04,0.17]
[1720459393592,9.10508847,137.13,137.06,0.17]
[1720459393757,7.86804503,137.14,137.08,0.17]
[1720459393955,6.6484,137.15,137.07,100.0]
[1720459394151,7.2936,137.11,137.06,0.17]
[1720459395191,20.0,137.1,137.03,100.0]
[1720459395488,7.2938,137.11,137.05,100.0]
[1720459395692,7.2945,137.09,137.03,121.95]
[1720459395902,20.0,137.1,137.01,100.0]
[1720459395903,7.2955,137.07,137.01,100.0]
[1720459396066,20.0,137.06,137.01,100.0]
[1720459396265,20.0,137.06,137.04,100.0]
[1720459396468,20.0,137.06,137.04,129.2467]
[1720459396765,7.2927,137.13,137.06,129.2459]
[1720459396977,7.2919,137.14,137.08,100.0]
[1720459397182,29.31163922,137.21,137.09,7.464]
[1720459397183,7.2908,137.16,137.09,7.464]
[1720459397389,7.2913,137.15,137.09,0.17]
[1720459397570,7.2918,137.14,137.09,0.17]
[1720459397753,7.2924,137.13,137.09,0.17]
[1720459397953,7.2916,137.15,137.09,0.17]
[1720459398173,7.2916,137.15,137.1,100.0]
[1720459398373,7.2908,137.16,137.1,100.0]
[1720459398582,7.2918,137.14,137.09,0.17]
[1720459398799,20.0,137.13,137.1,100.0]
[1720459398990,16.9731335,137.17,137.12,100.0]
[1720459399195,16.9731335,137.22,137.15,100.0]
[1720459399402,16.9731335,137.22,137.15,140.1779]
[1720459399604,7.2876,137.22,137.17,100.0]
[1720459399771,7.2881,137.21,137.16,0.17]
[1720459400092,14.05106693,137.27,137.19,100.0]
[1720459400265,14.05106693,137.27,137.18,0.17]
[1720459400266,41.3688554,137.27,137.18,0.17]
[1720459400474,41.3688554,137.27,137.17,100.0]
[1720459400475,7.2876,137.22,137.17,100.0]
[1720459400890,7.2872,137.23,137.17,100.0]
[1720459401321,7.2863,137.25,137.18,7.4592]
[1720459401490,7.2874,137.23,137.17,100.0]
[1720459401814,27.31918847,137.26,137.17,100.0]
[1720459402209,7.2874,137.23,137.17,100.0]
[1720459402521,7.289,137.2,137.17,0.17]
[1720459403201,9.10508847,137.26,137.17,100.0]
[1720459403389,7.2874,137.23,137.17,100.0]
[1720459403589,27.2876,137.22,137.16,0.17]
[1720459403788,20.0,137.22,137.16,30.0]
[1720459404016,20.0,137.22,137.11,200.0]
[1720459404233,18.3907,137.21,137.11,100.0]
[1720459404520,20.0,137.2,137.11,100.0]
[1720459404824,20.0,137.2,137.09,100.0]
[1720459404825,6.5238,137.18,137.09,100.0]
[1720459405029,20.0,137.17,137.09,100.0]
[1720459405316,7.2918,137.14,137.08,18.2368]
[1720459405621,20.0,137.13,137.07,107.2954]
[1720459405914,20.0,137.13,137.09,107.294]
[1720459406138,20.0,137.16,137.11,200.0]
[1720459406439,15.4452,137.19,137.13,100.0]
[1720459406440,20.0,137.17,137.13,100.0]
[1720459406723,27.2897,137.18,137.13,0.17]
[1720459406893,20.0,137.18,137.09,100.0]
[1720459407087,20.0,137.18,137.12,0.17]
[1720459407293,20.0,137.18,137.1,18.2344]
[1720459407596,20.0,137.18,137.12,0.17]
[1720459407899,20.0,137.18,137.13,100.0]
[1720459408536,6.1537,137.22,137.15,100.0]
[1720459408894,7.2891,137.19,137.14,0.17]
[1720459409399,7.2903,137.17,137.12,0.17]
[1720459410214,18.2206,137.21,137.13,100.0]
[1720459410416,7.2892,137.19,137.14,0.17]
[1720459410595,20.0,137.18,137.14,0.17]
[1720459410797,20.0,137.18,137.14,100.17]
[1720459411109,20.0,137.18,137.16,100.17]
[1720459411318,7.2879,137.22,137.16,122.12]
[1720459411616,7.2881,137.21,137.16,0.17]
[1720459411802,7.2886,137.2,137.15,100.0]
[1720459412134,7.2903,137.17,137.15,100.0]
[1720459412321,36.4347,137.24,137.15,100.0]
[1720459412500,7.2898,137.18,137.15,100.0]
[1720459412700,20.0,137.17,137.15,100.0]
[1720459413009,27.2903,137.17,137.13,100.0]
[1720459413219,20.0,137.17,137.13,100.0]
[1720459413422,20.17,137.23,137.15,100.0]
[1720459413728,7.2884,137.21,137.15,100.0]
[1720459413901,20.0,137.2,137.15,100.0]
[1720459414094,7.2897,137.18,137.14,0.17]
[1720459414300,20.0,137.17,137.13,100.0]
[1720459414921,7.2881,137.21,137.15,100.0]
[1720459415401,7.2886,137.2,137.15,100.0]
[1720459415722,7.2883,137.21,137.15,100.0]
[1720459416108,20.0,137.2,137.15,100.0]
[1720459416512,27.2886,137.2,137.15,100.0]
[1720459417399,20.0,137.2,137.14,0.17]
[1720459417622,27.2875,137.22,137.17,100.0]
[1720459417928,11.83977559,137.26,137.18,0.17]
[1720459418298,7.2876,137.22,137.18,0.17]
[1720459418502,7.2877,137.22,137.18,0.17]
[1720459419513,7.2868,137.24,137.18,0.17]
[1720459419827,7.2884,137.21,137.18,0.17]
[1720459420028,7.2895,137.19,137.14,0.17]
[1720459420227,7.2888,137.2,137.15,100.0]
[1720459420400,20.0,137.19,137.15,100.0]
[1720459420824,20.0,137.19,137.14,0.17]
[1720459420825,27.2891,137.19,137.14,0.17]
[1720459421025,7.29,137.18,137.14,0.17]
[1720459421330,27.2893,137.19,137.14,0.17]
[1720459421718,20.0,137.19,137.15,100.0]
[1720459422331,20.0,137.2,137.15,100.0]
[1720459423233,20.0,137.2,137.16,0.17]
[1720459423916,20.0,137.2,137.17,100.0]
[1720459424116,18.216,137.25,137.18,0.17]
[1720459424117,20.0,137.21,137.18,0.17]
[1720459424310,27.2876,137.22,137.18,0.17]
[1720459424630,13.22603732,137.25,137.19,100.0]
[1720459424828,6.005,137.26,137.19,100.0]
[1720459425033,7.2868,137.24,137.19,100.0]
[1720459425416,7.2868,137.24,137.2,0.17]
[1720459425611,7.2861,137.25,137.2,0.17]
[1720459426327,7.2852,137.27,137.22,0.17]
[1720459426643,7.2855,137.26,137.22,0.17]
[1720459427916,7.2869,137.24,137.2,0.17]
[1720459428103,7.2861,137.25,137.2,0.17]
[1720459428333,20.0,137.24,137.18,100.0]
[1720459428507,7.2872,137.23,137.19,0.17]
[1720459429107,7.2866,137.24,137.19,100.17]
[1720459429331,20.0,137.23,137.19,200.17]
[1720459429524,20.0,137.23,137.19,247.6315]
[1720459429733,20.0,137.25,137.19,247.6315]
[1720459429931,20.0,137.25,137.21,100.0]
[1720459430232,7.2851,137.27,137.22,0.17]
[1720459430436,27.2854,137.26,137.22,0.17]
[1720459430744,20.0,137.28,137.2,18.3914]
[1720459430745,20.0,137.25,137.2,0.17]
[1720459430947,7.2868,137.24,137.2,0.17]
[1720459431151,27.2871,137.23,137.17,125.5143]
[1720459431352,12.27882151,137.29,137.22,100.0]
[1720459431864,20.0,137.28,137.22,107.2871]
[1720459432052,27.2846,137.28,137.22,100.0]
[1720459432350,20.0,137.28,137.23,0.17]
[1720459432644,27.2846,137.28,137.23,0.17]
[1720459433625,16.1271,137.3,137.23,0.17]
[1720459433626,7.2835,137.3,137.24,100.0]
[1720459434147,7.2835,137.3,137.24,200.0]
[1720459434924,9.10508847,137.33,137.27,100.0]
[1720459435229,6.3383,137.37,137.28,0.17]
[1720459435230,5.81098454,137.35,137.28,0.17]